[Event "Early-Titled-Tuesday-Blitz-October-03-2023"]
[Site "Chess.com"]
[Date "2023.10.03"]
[Round "7"]
[White "temus_galaktionov"]
[Black "shimastream"]
[Result "1-0"]
[WhiteElo "2879"]
[BlackElo "2962"]
[TimeControl "180+1"]
[EndTime "9:20:23 PDT"]
[Termination "temus_galaktionov won on time"]

1. d4 {[%clk 0:03:00.9]} 1... Nf6 {[%clk 0:02:55.7]} 2. c4 {[%clk 0:03:00]} 2...
d6 {[%clk 0:02:55.8]} 3. Nf3 {[%clk 0:02:59.9]} 3... g6 {[%clk 0:02:51.7]} 4.
Nc3 {[%clk 0:02:59.3]} 4... Bg7 {[%clk 0:02:45.2]} 5. e4 {[%clk 0:02:59.3]} 5...
O-O {[%clk 0:02:44.1]} 6. Be2 {[%clk 0:02:59.5]} 6... e5 {[%clk 0:02:43.1]} 7.
O-O {[%clk 0:02:59.5]} 7... Nbd7 {[%clk 0:02:40.1]} 8. Be3 {[%clk 0:02:59.3]}
8... Qe7 {[%clk 0:02:35.7]} 9. Qc2 {[%clk 0:02:48.8]} 9... a6 {[%clk 0:02:33.4]}
10. Rfe1 {[%clk 0:02:47.8]} 10... exd4 {[%clk 0:02:31.8]} 11. Bxd4 {[%clk
0:02:47]} 11... c5 {[%clk 0:02:27.9]} 12. Be3 {[%clk 0:02:40.7]} 12... Re8
{[%clk 0:02:26.8]} 13. Bd3 {[%clk 0:02:35.5]} 13... b6 {[%clk 0:02:19.4]} 14.
Nd5 {[%clk 0:02:33]} 14... Nxd5 {[%clk 0:02:18.9]} 15. exd5 {[%clk 0:02:33.9]}
15... Ne5 {[%clk 0:02:03.6]} 16. Nxe5 {[%clk 0:02:33.4]} 16... Bxe5 {[%clk
0:02:03.8]} 17. f4 {[%clk 0:02:23.8]} 17... Bf6 {[%clk 0:01:57.2]} 18. Bxc5
{[%clk 0:02:17.8]} 18... Qxe1+ {[%clk 0:01:48.2]} 19. Rxe1 {[%clk 0:02:18.7]}
19... Rxe1+ {[%clk 0:01:48.2]} 20. Kf2 {[%clk 0:02:19.2]} 20... bxc5 {[%clk
0:01:19.9]} 21. Kxe1 {[%clk 0:02:17.7]} 21... Rb8 {[%clk 0:01:18.7]} 22. b3
{[%clk 0:02:15.9]} 22... Bd7 {[%clk 0:01:17.9]} 23. f5 {[%clk 0:02:01.4]} 23...
Kg7 {[%clk 0:01:16.3]} 24. Qf2 {[%clk 0:01:46.5]} 24... a5 {[%clk 0:01:13.5]}
25. h4 {[%clk 0:01:18]} 25... a4 {[%clk 0:01:07.4]} 26. Bc2 {[%clk 0:01:10.3]}
26... a3 {[%clk 0:00:58.4]} 27. h5 {[%clk 0:00:59.6]} 27... g5 {[%clk
0:00:54.1]} 28. Qd2 {[%clk 0:00:54]} 28... Ra8 {[%clk 0:00:47.8]} 29. g4 {[%clk
0:00:49.9]} 29... h6 {[%clk 0:00:47.1]} 30. Kd1 {[%clk 0:00:47.5]} 30... Be5
{[%clk 0:00:43.2]} 31. b4 {[%clk 0:00:47]} 31... Kf6 {[%clk 0:00:18.4]} 32. b5
{[%clk 0:00:40.8]} 32... Ke7 {[%clk 0:00:18]} 33. f6+ {[%clk 0:00:32.9]} 33...
Bxf6 {[%clk 0:00:11.9]} 34. Bf5 {[%clk 0:00:32.9]} 34... Bxf5 {[%clk 0:00:09.6]}
35. gxf5 {[%clk 0:00:33.8]} 35... g4 {[%clk 0:00:09.9]} 36. Qe2+ {[%clk
0:00:25.3]} 36... Be5 {[%clk 0:00:06.5]} 37. Qxg4 {[%clk 0:00:25.7]} 37... Ra4
{[%clk 0:00:05.7]} 38. f6+ {[%clk 0:00:23.6]} 38... Kxf6 {[%clk 0:00:04.9]} 39.
Kc1 {[%clk 0:00:13.8]} 39... Rb4 {[%clk 0:00:03.4]} 40. Qf3+ {[%clk 0:00:14.2]}
40... Kg7 {[%clk 0:00:03.2]} 41. Qxa3 {[%clk 0:00:15.1]} 41... Rxc4+ {[%clk
0:00:03.4]} 42. Kd1 {[%clk 0:00:15.4]} 42... Rb4 {[%clk 0:00:03.8]} 43. Qa6
{[%clk 0:00:15.4]} 43... c4 {[%clk 0:00:04]} 44. b6 {[%clk 0:00:14.9]} 44... c3
{[%clk 0:00:04.4]} 45. b7 {[%clk 0:00:15.3]} 45... Rb1+ {[%clk 0:00:04.5]} 46.
Kc2 {[%clk 0:00:13.8]} 46... Rb2+ {[%clk 0:00:05.4]} 47. Kd3 {[%clk 0:00:13.8]}
47... Rd2+ {[%clk 0:00:05.8]} 48. Ke3 {[%clk 0:00:13.5]} 48... Rb2 {[%clk
0:00:06.7]} 49. Qc6 {[%clk 0:00:13]} 49... Bf6 {[%clk 0:00:03.2]} 50. Kd3 {[%clk
0:00:12.9]} 50... Rd2+ {[%clk 0:00:03.2]} 51. Ke4 {[%clk 0:00:13]} 51... Rb2
{[%clk 0:00:04.1]} 52. a4 {[%clk 0:00:12.8]} 52... c2 {[%clk 0:00:03.7]} 53. a5
{[%clk 0:00:12.4]} 53... Bg5 {[%clk 0:00:01.3]} 54. Qc3+ {[%clk 0:00:12.3]} 1-0

[Event "Early-Titled-Tuesday-Blitz-October-03-2023"]
[Site "Chess.com"]
[Date "2023.10.03"]
[Round "7"]
[White "rikchessmx"]
[Black "familijatop71"]
[Result "1-0"]
[WhiteElo "2333"]
[BlackElo "2194"]
[TimeControl "180+1"]
[EndTime "9:20:24 PDT"]
[Termination "rikchessmx won on time"]

1. e4 {[%clk 0:02:32.1]} 1... d5 {[%clk 0:03:00]} 2. exd5 {[%clk 0:02:31.5]}
2... Qxd5 {[%clk 0:03:00.9]} 3. Nc3 {[%clk 0:02:31.6]} 3... Qa5 {[%clk
0:03:00.9]} 4. Bc4 {[%clk 0:02:31.4]} 4... c6 {[%clk 0:03:00.4]} 5. d3 {[%clk
0:02:31.3]} 5... Nf6 {[%clk 0:02:59.4]} 6. Bd2 {[%clk 0:02:28.1]} 6... Qc7
{[%clk 0:02:58.6]} 7. f4 {[%clk 0:02:28.2]} 7... Bg4 {[%clk 0:02:49.8]} 8. Nf3
{[%clk 0:02:27.4]} 8... e6 {[%clk 0:02:46.6]} 9. h3 {[%clk 0:02:27.3]} 9... Bxf3
{[%clk 0:02:46.3]} 10. Qxf3 {[%clk 0:02:26.8]} 10... Be7 {[%clk 0:02:41.3]} 11.
O-O-O {[%clk 0:02:26.1]} 11... b5 {[%clk 0:02:38.3]} 12. Nxb5 {[%clk 0:02:21.2]}
12... Qd7 {[%clk 0:02:15.7]} 13. Nc3 {[%clk 0:02:11.6]} 13... a5 {[%clk
0:02:09.8]} 14. Ne4 {[%clk 0:02:10.4]} 14... Na6 {[%clk 0:02:03.7]} 15. g4
{[%clk 0:02:07.5]} 15... Nb4 {[%clk 0:01:58.6]} 16. f5 {[%clk 0:02:02]} 16...
Nfd5 {[%clk 0:01:48.6]} 17. a3 {[%clk 0:01:54.3]} 17... O-O {[%clk 0:01:32.3]}
18. axb4 {[%clk 0:01:43.1]} 18... axb4 {[%clk 0:01:32.5]} 19. Bg5 {[%clk
0:01:41.4]} 19... Bxg5+ {[%clk 0:00:54.2]} 20. Nxg5 {[%clk 0:01:40.3]} 20... Nc3
{[%clk 0:00:54.6]} 21. Rde1 {[%clk 0:01:31.6]} 21... Qd8 {[%clk 0:00:24]} 22. f6
{[%clk 0:01:28.2]} 22... Qa5 {[%clk 0:00:20.1]} 23. bxc3 {[%clk 0:01:11]} 23...
bxc3 {[%clk 0:00:17.1]} 24. Kd1 {[%clk 0:01:09.3]} 24... Qxg5 {[%clk 0:00:16.5]}
25. Qe3 {[%clk 0:01:03.5]} 25... Ra1+ {[%clk 0:00:15.8]} 26. Ke2 {[%clk
0:01:03.1]} 26... Rxe1+ {[%clk 0:00:14]} 27. Rxe1 {[%clk 0:01:02.4]} 27... Qxf6
{[%clk 0:00:11.5]} 28. g5 {[%clk 0:01:00.7]} 28... Qg6 {[%clk 0:00:10.2]} 29.
Rg1 {[%clk 0:00:57.2]} 29... Qh5+ {[%clk 0:00:10.4]} 30. Qf3 {[%clk 0:00:56.2]}
30... Qg6 {[%clk 0:00:09]} 31. h4 {[%clk 0:00:55.6]} 31... f6 {[%clk 0:00:05]}
32. h5 {[%clk 0:00:54.9]} 32... Qe8 {[%clk 0:00:05]} 33. Qe3 {[%clk 0:00:51.1]}
33... Kh8 {[%clk 0:00:03.5]} 34. g6 {[%clk 0:00:46.4]} 34... Qb8 {[%clk
0:00:03]} 35. gxh7 {[%clk 0:00:38.7]} 35... Qh2+ {[%clk 0:00:02.8]} 36. Ke1
{[%clk 0:00:37.3]} 36... Ra8 {[%clk 0:00:02.6]} 37. Qf2 {[%clk 0:00:13.3]} 37...
Ra1+ {[%clk 0:00:02.6]} 38. Ke2 {[%clk 0:00:13.7]} 38... Qxg1 {[%clk 0:00:02.2]}
39. Qxg1 {[%clk 0:00:13]} 39... Rxg1 {[%clk 0:00:02.4]} 40. Bxe6 {[%clk
0:00:12.3]} 40... Rg2+ {[%clk 0:00:02.3]} 41. Kd1 {[%clk 0:00:11.8]} 41... Rg1+
{[%clk 0:00:02]} 42. Ke2 {[%clk 0:00:11.2]} 42... Kxh7 {[%clk 0:00:02.6]} 43.
Bf5+ {[%clk 0:00:10.8]} 43... Kh6 {[%clk 0:00:02.5]} 44. Be4 {[%clk 0:00:11.7]}
44... Kxh5 {[%clk 0:00:02.4]} 45. Bxc6 {[%clk 0:00:11.2]} 45... Kg5 {[%clk
0:00:02.8]} 46. d4 {[%clk 0:00:11.5]} 46... Kf5 {[%clk 0:00:02.7]} 47. Kd3
{[%clk 0:00:11.9]} 47... Rg3+ {[%clk 0:00:02.2]} 48. Kc4 {[%clk 0:00:11.7]}
48... Ke6 {[%clk 0:00:02.2]} 49. Be4 {[%clk 0:00:10.2]} 49... Kd6 {[%clk
0:00:02.3]} 50. Bd3 {[%clk 0:00:09.8]} 50... g5 {[%clk 0:00:01.9]} 51. Kxc3
{[%clk 0:00:10]} 51... f5 {[%clk 0:00:02.2]} 52. Kd2 {[%clk 0:00:10.5]} 52... f4
{[%clk 0:00:02.7]} 53. c3 {[%clk 0:00:10.6]} 53... Rh3 {[%clk 0:00:02.5]} 54.
Ke2 {[%clk 0:00:10.6]} 54... g4 {[%clk 0:00:02.9]} 55. Bf5 {[%clk 0:00:10.1]}
55... Rh2+ {[%clk 0:00:01]} 56. Kd3 {[%clk 0:00:10.2]} 1-0

[Event "Early-Titled-Tuesday-Blitz-October-03-2023"]
[Site "Chess.com"]
[Date "2023.10.03"]
[Round "7"]
[White "NelsonLinda"]
[Black "FMVolodymyrSakun"]
[Result "1-0"]
[WhiteElo "2596"]
[BlackElo "2643"]
[TimeControl "180+1"]
[EndTime "9:20:26 PDT"]
[Termination "NelsonLinda won by resignation"]

1. b3 {[%clk 0:03:00.6]} 1... e5 {[%clk 0:02:59.6]} 2. Bb2 {[%clk 0:03:00.8]}
2... Nc6 {[%clk 0:03:00]} 3. e3 {[%clk 0:03:00.6]} 3... Nf6 {[%clk 0:03:00.3]}
4. Bb5 {[%clk 0:03:00.6]} 4... Bd6 {[%clk 0:03:00.2]} 5. Na3 {[%clk 0:03:00.9]}
5... Na5 {[%clk 0:02:59.3]} 6. Be2 {[%clk 0:03:00.4]} 6... Qe7 {[%clk
0:02:58.1]} 7. Nb5 {[%clk 0:02:56.8]} 7... Nc6 {[%clk 0:02:55.5]} 8. Nxd6+
{[%clk 0:02:51]} 8... cxd6 {[%clk 0:02:55.6]} 9. Nf3 {[%clk 0:02:45.6]} 9... d5
{[%clk 0:02:55.8]} 10. O-O {[%clk 0:02:44.1]} 10... d6 {[%clk 0:02:55.8]} 11. d3
{[%clk 0:02:37.7]} 11... O-O {[%clk 0:02:54.6]} 12. c4 {[%clk 0:02:27]} 12... a5
{[%clk 0:02:54.3]} 13. a3 {[%clk 0:02:26.5]} 13... Bg4 {[%clk 0:02:44.3]} 14.
Rc1 {[%clk 0:02:19.8]} 14... Be6 {[%clk 0:02:35.5]} 15. Nd2 {[%clk 0:02:14.7]}
15... Rfd8 {[%clk 0:02:24]} 16. Qc2 {[%clk 0:01:51.8]} 16... Rac8 {[%clk
0:02:21.8]} 17. Qb1 {[%clk 0:01:51]} 17... dxc4 {[%clk 0:02:04.7]} 18. dxc4
{[%clk 0:01:38.8]} 18... d5 {[%clk 0:01:54.4]} 19. cxd5 {[%clk 0:01:38.3]} 19...
Bxd5 {[%clk 0:01:54.9]} 20. Rfd1 {[%clk 0:01:38]} 20... Qe6 {[%clk 0:01:53.4]}
21. Nc4 {[%clk 0:01:30.8]} 21... Rb8 {[%clk 0:01:49.4]} 22. Bc3 {[%clk
0:01:26.4]} 22... a4 {[%clk 0:01:48.1]} 23. Be1 {[%clk 0:01:06.1]} 23... b5
{[%clk 0:01:33.1]} 24. Na5 {[%clk 0:01:04]} 24... axb3 {[%clk 0:01:29.4]} 25.
Rxd5 {[%clk 0:00:44.2]} 25... Rxd5 {[%clk 0:00:39.3]} 26. Nxc6 {[%clk
0:00:43.9]} 26... Ra8 {[%clk 0:00:35.2]} 27. Qxb3 {[%clk 0:00:34.7]} 27... h6
{[%clk 0:00:22.4]} 28. Bxb5 {[%clk 0:00:26.3]} 28... Rd7 {[%clk 0:00:15.1]} 29.
Qxe6 {[%clk 0:00:19.8]} 29... fxe6 {[%clk 0:00:16]} 30. Nxe5 {[%clk 0:00:18.2]}
30... Rb7 {[%clk 0:00:13.3]} 31. Bc6 {[%clk 0:00:18.2]} 31... Rc8 {[%clk
0:00:13.6]} 32. Ra1 {[%clk 0:00:09.7]} 32... Rb6 {[%clk 0:00:11.3]} 33. Bf3
{[%clk 0:00:07.9]} 33... Rc5 {[%clk 0:00:10.7]} 34. Nd3 {[%clk 0:00:06.9]} 34...
Rc2 {[%clk 0:00:10]} 35. Nb4 {[%clk 0:00:06.7]} 35... Rc8 {[%clk 0:00:08.7]} 36.
a4 {[%clk 0:00:06.3]} 36... Rd6 {[%clk 0:00:06.8]} 37. a5 {[%clk 0:00:06.2]}
37... e5 {[%clk 0:00:07.2]} 38. Bb7 {[%clk 0:00:04.8]} 38... Rb8 {[%clk
0:00:06.7]} 39. a6 {[%clk 0:00:05.4]} 39... Rxa6 {[%clk 0:00:06.8]} 40. Bxa6
{[%clk 0:00:04.7]} 40... Rf8 {[%clk 0:00:05.8]} 41. Bc4+ {[%clk 0:00:05]} 41...
Kh7 {[%clk 0:00:06]} 42. Nd5 {[%clk 0:00:05.9]} 42... Ne4 {[%clk 0:00:06.1]} 43.
Bd3 {[%clk 0:00:06.2]} 43... Kh8 {[%clk 0:00:05]} 44. Bxe4 {[%clk 0:00:06.6]}
44... Rd8 {[%clk 0:00:05.9]} 45. Rd1 {[%clk 0:00:06.6]} 45... Rb8 {[%clk
0:00:06.1]} 46. Bc3 {[%clk 0:00:07.1]} 46... Rc8 {[%clk 0:00:06.3]} 47. Kf1
{[%clk 0:00:07.3]} 47... Re8 {[%clk 0:00:06.7]} 48. Ke1 {[%clk 0:00:07.7]} 48...
Rf8 {[%clk 0:00:07.5]} 49. f3 {[%clk 0:00:08.2]} 49... Re8 {[%clk 0:00:08.4]}
50. h4 {[%clk 0:00:08.8]} 50... Rc8 {[%clk 0:00:09]} 51. h5 {[%clk 0:00:09]}
51... Re8 {[%clk 0:00:09.9]} 52. g4 {[%clk 0:00:09.6]} 52... Rf8 {[%clk
0:00:10.6]} 53. Ke2 {[%clk 0:00:10.2]} 53... Re8 {[%clk 0:00:11.2]} 54. Rc1
{[%clk 0:00:10.5]} 54... Ra8 {[%clk 0:00:11.8]} 55. Rb1 {[%clk 0:00:10.8]} 55...
Ra2+ {[%clk 0:00:12.1]} 56. Rb2 {[%clk 0:00:11.5]} 56... Ra8 {[%clk 0:00:13]}
57. Bxe5 {[%clk 0:00:12.1]} 57... Re8 {[%clk 0:00:13.1]} 58. Bd4 {[%clk
0:00:12.7]} 58... Rd8 {[%clk 0:00:13.4]} 59. Be5 {[%clk 0:00:13.1]} 59... Re8
{[%clk 0:00:13.6]} 60. Rb8 {[%clk 0:00:13.7]} 60... Rxb8 {[%clk 0:00:13.6]} 61.
Bxb8 {[%clk 0:00:14.4]} 1-0

[Event "Early-Titled-Tuesday-Blitz-October-03-2023"]
[Site "Chess.com"]
[Date "2023.10.03"]
[Round "7"]
[White "ChessLover0108"]
[Black "Kirill_Klukin"]
[Result "1-0"]
[WhiteElo "2930"]
[BlackElo "2712"]
[TimeControl "180+1"]
[EndTime "9:20:27 PDT"]
[Termination "ChessLover0108 won by resignation"]

1. Nf3 {[%clk 0:03:00.9]} 1... c5 {[%clk 0:02:57.2]} 2. c4 {[%clk 0:03:01.1]}
2... g6 {[%clk 0:02:57.3]} 3. g3 {[%clk 0:03:00.5]} 3... Bg7 {[%clk 0:02:57.9]}
4. Bg2 {[%clk 0:03:01.4]} 4... Nc6 {[%clk 0:02:58.6]} 5. O-O {[%clk 0:03:02]}
5... a6 {[%clk 0:02:59]} 6. Nc3 {[%clk 0:03:01.5]} 6... Rb8 {[%clk 0:02:59.3]}
7. e3 {[%clk 0:02:41.3]} 7... e5 {[%clk 0:02:35.4]} 8. d4 {[%clk 0:02:39.5]}
8... d6 {[%clk 0:02:12.8]} 9. dxc5 {[%clk 0:02:13.1]} 9... dxc5 {[%clk
0:02:09.8]} 10. Qe2 {[%clk 0:01:53.8]} 10... Nge7 {[%clk 0:01:38.6]} 11. Rd1
{[%clk 0:01:52.4]} 11... Bd7 {[%clk 0:01:38.8]} 12. Ng5 {[%clk 0:01:45.3]} 12...
Qc8 {[%clk 0:01:29.3]} 13. Nge4 {[%clk 0:01:43.3]} 13... O-O {[%clk 0:01:24]}
14. Nxc5 {[%clk 0:01:18.9]} 14... Bg4 {[%clk 0:00:41.5]} 15. f3 {[%clk
0:00:57.4]} 15... Bf5 {[%clk 0:00:40.2]} 16. N5e4 {[%clk 0:00:48.8]} 16... Be6
{[%clk 0:00:35.2]} 17. b3 {[%clk 0:00:48.9]} 17... Qc7 {[%clk 0:00:33.8]} 18.
Ba3 {[%clk 0:00:48.9]} 18... Rbd8 {[%clk 0:00:21.6]} 19. Nd5 {[%clk 0:00:32.5]}
19... Nxd5 {[%clk 0:00:11]} 20. cxd5 {[%clk 0:00:33.4]} 20... Rxd5 {[%clk
0:00:05.9]} 21. Bxf8 {[%clk 0:00:25.8]} 21... Kxf8 {[%clk 0:00:06.3]} 22. Ng5
{[%clk 0:00:20.2]} 22... Rxd1+ {[%clk 0:00:05.2]} 23. Rxd1 {[%clk 0:00:21.1]}
23... Bc8 {[%clk 0:00:04.7]} 24. Ne4 {[%clk 0:00:08.3]} 24... Bf5 {[%clk
0:00:04.2]} 25. Nd6 {[%clk 0:00:07.8]} 25... Be6 {[%clk 0:00:04.7]} 26. f4
{[%clk 0:00:08.4]} 26... exf4 {[%clk 0:00:04.9]} 27. gxf4 {[%clk 0:00:09.3]}
27... h5 {[%clk 0:00:04.8]} 28. f5 {[%clk 0:00:07.6]} 28... gxf5 {[%clk
0:00:02.2]} 29. Qxh5 {[%clk 0:00:08.1]} 29... Be5 {[%clk 0:00:02.9]} 30. Nxf5
{[%clk 0:00:08]} 30... Qb6 {[%clk 0:00:01.8]} 31. Kh1 {[%clk 0:00:04.8]} 31...
Bxf5 {[%clk 0:00:01.8]} 32. Qxf5 {[%clk 0:00:05.7]} 32... Qxe3 {[%clk
0:00:02.5]} 33. Rf1 {[%clk 0:00:06.2]} 33... f6 {[%clk 0:00:02.2]} 34. Qg6
{[%clk 0:00:04.6]} 34... Ke7 {[%clk 0:00:02.4]} 35. Rd1 {[%clk 0:00:03.5]} 35...
Qg5 {[%clk 0:00:02.2]} 36. Qxg5 {[%clk 0:00:03.4]} 36... fxg5 {[%clk 0:00:03.1]}
37. Bxc6 {[%clk 0:00:04]} 37... bxc6 {[%clk 0:00:04]} 38. h3 {[%clk 0:00:04.9]}
38... c5 {[%clk 0:00:04.1]} 39. Kg2 {[%clk 0:00:05.5]} 39... Ke6 {[%clk
0:00:04.1]} 40. Kf3 {[%clk 0:00:06.2]} 40... a5 {[%clk 0:00:04.7]} 41. Ke4
{[%clk 0:00:06.4]} 41... Bf6 {[%clk 0:00:05.1]} 42. Rd5 {[%clk 0:00:06.4]} 42...
Be7 {[%clk 0:00:05.8]} 43. Re5+ {[%clk 0:00:06.6]} 43... Kd6 {[%clk 0:00:05.5]}
44. Rd5+ {[%clk 0:00:05.4]} 44... Ke6 {[%clk 0:00:05.7]} 45. a4 {[%clk
0:00:05.7]} 45... Kf6 {[%clk 0:00:04.8]} 46. Rf5+ {[%clk 0:00:02.9]} 46... Ke6
{[%clk 0:00:05.6]} 47. Re5+ {[%clk 0:00:03.5]} 47... Kd6 {[%clk 0:00:06.3]} 48.
Rxe7 {[%clk 0:00:03.7]} 48... Kxe7 {[%clk 0:00:06.6]} 49. Kd5 {[%clk 0:00:04.6]}
49... c4 {[%clk 0:00:07.5]} 50. bxc4 {[%clk 0:00:04.7]} 50... Kd7 {[%clk
0:00:08]} 51. Kc5 {[%clk 0:00:05.3]} 51... Kc7 {[%clk 0:00:08.9]} 52. Kb5 {[%clk
0:00:06]} 52... Kd6 {[%clk 0:00:09.7]} 53. Kb6 {[%clk 0:00:05.6]} 53... Kd7
{[%clk 0:00:09.8]} 54. Kxa5 {[%clk 0:00:04.7]} 54... Kc8 {[%clk 0:00:10.7]} 55.
Kb4 {[%clk 0:00:04.7]} 55... Kc7 {[%clk 0:00:11.6]} 56. Kb5 {[%clk 0:00:04.8]}
56... g4 {[%clk 0:00:12.5]} 57. hxg4 {[%clk 0:00:04.8]} 1-0

[Event "Early-Titled-Tuesday-Blitz-October-03-2023"]
[Site "Chess.com"]
[Date "2023.10.03"]
[Round "7"]
[White "dropstoneDP"]
[Black "Vaathi_Coming"]
[Result "1/2-1/2"]
[WhiteElo "3111"]
[BlackElo "2892"]
[TimeControl "180+1"]
[EndTime "9:20:29 PDT"]
[Termination "Game drawn by repetition"]

1. e4 {[%clk 0:03:00.9]} 1... e6 {[%clk 0:02:59.5]} 2. d4 {[%clk 0:03:00.5]}
2... a6 {[%clk 0:02:58.6]} 3. Nf3 {[%clk 0:03:00.1]} 3... d5 {[%clk 0:02:58.9]}
4. exd5 {[%clk 0:02:59.4]} 4... exd5 {[%clk 0:02:58.7]} 5. Bd3 {[%clk 0:03:00]}
5... Nf6 {[%clk 0:02:58.6]} 6. O-O {[%clk 0:03:00.2]} 6... Be7 {[%clk
0:02:59.1]} 7. Bf4 {[%clk 0:02:59.1]} 7... O-O {[%clk 0:02:59]} 8. h3 {[%clk
0:02:59.7]} 8... h6 {[%clk 0:02:52.5]} 9. Re1 {[%clk 0:02:59.3]} 9... Nc6 {[%clk
0:02:49]} 10. c3 {[%clk 0:02:55.5]} 10... Bd6 {[%clk 0:02:49.1]} 11. Ne5 {[%clk
0:02:46.5]} 11... Ne7 {[%clk 0:02:39.7]} 12. Qc2 {[%clk 0:02:42.1]} 12... Be6
{[%clk 0:02:10.2]} 13. Nd2 {[%clk 0:02:41.5]} 13... Qc8 {[%clk 0:02:10.2]} 14.
Re3 {[%clk 0:02:27.1]} 14... Bf5 {[%clk 0:01:57.7]} 15. Rae1 {[%clk 0:02:23.2]}
15... Bxd3 {[%clk 0:01:55.6]} 16. Qxd3 {[%clk 0:02:22.6]} 16... Qf5 {[%clk
0:01:54.1]} 17. Rf3 {[%clk 0:01:48.9]} 17... Qxd3 {[%clk 0:01:20.8]} 18. Nxd3
{[%clk 0:01:49.8]} 18... Bxf4 {[%clk 0:01:12.7]} 19. Nxf4 {[%clk 0:01:50.7]}
19... Rfe8 {[%clk 0:01:12]} 20. Rfe3 {[%clk 0:01:50.5]} 20... Kf8 {[%clk
0:01:11.8]} 21. g4 {[%clk 0:01:40.4]} 21... g5 {[%clk 0:00:56.4]} 22. Nd3 {[%clk
0:01:37.3]} 22... Ng6 {[%clk 0:00:56.7]} 23. Rxe8+ {[%clk 0:01:32.6]} 23... Rxe8
{[%clk 0:00:57.6]} 24. Rxe8+ {[%clk 0:01:31.7]} 24... Nxe8 {[%clk 0:00:58.4]}
25. Nc5 {[%clk 0:01:32.6]} 25... Nd6 {[%clk 0:00:58.1]} 26. Nd3 {[%clk
0:01:00.6]} 26... Ke7 {[%clk 0:00:55.6]} 27. Kg2 {[%clk 0:01:00.2]} 27... f5
{[%clk 0:00:47.9]} 28. f4 {[%clk 0:00:41.6]} 28... gxf4 {[%clk 0:00:40.5]} 29.
Kf3 {[%clk 0:00:40.8]} 29... Ne4 {[%clk 0:00:23]} 30. gxf5 {[%clk 0:00:33.7]}
30... Nxd2+ {[%clk 0:00:19.7]} 31. Ke2 {[%clk 0:00:34.2]} 31... Nh4 {[%clk
0:00:14]} 32. Kxd2 {[%clk 0:00:34.2]} 32... Nxf5 {[%clk 0:00:10.7]} 33. Nxf4
{[%clk 0:00:33.8]} 33... c6 {[%clk 0:00:11.2]} 34. Ke2 {[%clk 0:00:33]} 34...
Kf6 {[%clk 0:00:10.3]} 35. Kf3 {[%clk 0:00:32.9]} 35... Nd6 {[%clk 0:00:10.9]}
36. Nd3 {[%clk 0:00:30.8]} 36... Kf5 {[%clk 0:00:11.3]} 37. Nc5 {[%clk
0:00:23.3]} 37... a5 {[%clk 0:00:11.6]} 38. a4 {[%clk 0:00:22.7]} 38... h5
{[%clk 0:00:08.1]} 39. b4 {[%clk 0:00:16.7]} 39... b6 {[%clk 0:00:05.5]} 40. Nd7
{[%clk 0:00:16]} 40... Nc4 {[%clk 0:00:04.8]} 41. Nb8 {[%clk 0:00:12.8]} 41...
Nb2 {[%clk 0:00:01.8]} 42. Nxc6 {[%clk 0:00:07.4]} 42... Nxa4 {[%clk 0:00:02]}
43. bxa5 {[%clk 0:00:05.1]} 43... bxa5 {[%clk 0:00:02.9]} 44. Nxa5 {[%clk
0:00:05.5]} 44... Nxc3 {[%clk 0:00:03.6]} 45. Nc6 {[%clk 0:00:05.7]} 45... Ne4
{[%clk 0:00:03.5]} 46. Ne7+ {[%clk 0:00:05.8]} 46... Ke6 {[%clk 0:00:04]} 47.
Ng6 {[%clk 0:00:06]} 47... Kf5 {[%clk 0:00:03]} 48. Ne7+ {[%clk 0:00:02.9]}
48... Ke6 {[%clk 0:00:02.9]} 49. Ng6 {[%clk 0:00:03.5]} 49... Kf5 {[%clk
0:00:02.5]} 50. Ne7+ {[%clk 0:00:03.4]} 1/2-1/2